{"text_format":"1","workbook":"xlsx","n_sheets":6,"sheets":["更新履歴","ツール","Master","条件","背景と文字色ルール","個人設定"],"not_rendered":{"charts":0,"images":2,"macros":1,"external_links":0,"defined_names":6,"comments":0,"pivot_tables":0},"unopened":[],"bounds":{"document_bytes":16777216,"sheet_cells":100000,"rows_first":2000,"rows_last":500,"rows_between":2000,"halvings":0,"cell_chars":16384,"cell_head_chars":4096},"cells_cut":0,"cells_raw":0,"read":"whole","date_system":"1900"}

{"sheet":"更新履歴","index":0,"n_rows":7,"n_cols":7,"rows_kept":7,"cut":false,"hidden":false,"merged":[]}
[null,"【チョコットランド】称号マスタ更新履歴",null,null,null,null,"※履歴の追加用なので、この囲み内は編集＆削除は厳禁"]
[null,"※更新した際は下記のリストも追記して下さい。"]
[]
[null,"日付","更新シート","更新箇所","状態","作成/更新者"]
[null,"2022-08-25","FFANTASYTITLEMAST","[9/14] 称号条件の分割","修正","佐藤恭優"]
[null,"2022-08-05","FFANTASYTITLEMAST","[9/14] 称号追加","追加","越川善陽"]
[null,"2022-07-28","すべて","新規作成","追加","鈴木孝幸"]

{"sheet":"ツール","index":1,"n_rows":13,"n_cols":3,"rows_kept":13,"cut":false,"hidden":false,"merged":[[2,2,2,8]]}
["チョコットランド用ツール"]
[null,null,"本番用XML書出しパス"]
[null,null,{"$f":"INDEX( UserList[], IFERROR( MATCH( LoginUserName(), UserList[社員番号], 0 ), MATCH( \"-\", UserList[社員番号], 0 ) ), MATCH( \"HOME\", UserList[#Headers], 0 ) )","v":"C:\\Users\\naito_mahiro\\Desktop\\choco\\FTS\\data"}]
[null,null,"↑は数式になっているので直接記入しないで下さい。設定は『個人設定』のシートで。"]
[]
[]
[]
[]
[]
[]
["マクロのバックアップ"]
["※上のセルに自分のパスが自動で反映されない場合は式が消えている可能性があるので、その場合は↓の式をコピーしてC3に=を入力後に貼り付けて下さい"]
["INDEX( UserList, IFERROR( MATCH( LoginUserName(), UserList[社員番号], 0 ), MATCH( \"-\", UserList[社員番号], 0 ) ), MATCH( \"HOME\", UserList[#見出し], 0 ) )"]

{"sheet":"Master","index":2,"n_rows":296,"n_cols":28,"rows_kept":296,"cut":false,"hidden":false,"merged":[[0,3,0,8],[0,9,0,14],[0,15,0,20]]}
[null,null,null,"条件１つ目",null,null,null,null,null,"条件２つ目",null,null,null,null,null,"条件３つ目"]
["TitleID","TitleName","Kind",null,"Term1Type","Term1CollectId","Term1Count","Term1Text","Term1ShowText",null,"Term2Type","Term2CollectId","Term2Count","Term2Text","Term2ShowText",null,"Term3Type","Term3CollectId","Term3Count","Term3Text","Term3ShowText",null,"BackGroud",null,"TxColor",null,"←XMLタグ名 ※出力しない場合は空欄にする"]
["称号ＩＤ","称号名","取得条件種類","カテゴリ1",null,"カテゴリ2","カテゴリ3","条件内容","クライアント表示条件文","カテゴリ1",null,"カテゴリ2","カテゴリ3","条件内容","クライアント表示条件文","カテゴリ1",null,"カテゴリ2","カテゴリ3","条件内容","クライアント表示条件文","背景",null,"文字色"]
[]
["TITLEID",null,"KIND",null,"TERM1TYPE","TERM1COLLECTID","TERM1COLLECTCOUNT",null,null,null,"TERM2TYPE","TERM2COLLECTID","TERM2COLLECTCOUNT",null,null,null,"TERM3TYPE","TERM3COLLECTID","TERM3COLLECTCOUNT"]
[1,"チョコットランドの冒険者",1,"プレイ回数",{"$f":"VLOOKUP(D6,取得条件,2,FALSE)","v":1},null,1,"冒険者として\\nチョコットランドを訪れる",1,"条件なし",{"$f":"VLOOKUP(J6,取得条件,2,FALSE)","v":0},null,null,null,null,"条件なし",{"$f":"VLOOKUP(P6,取得条件,2,FALSE)","v":0},null,null,null,null,"赤",{"$f":"VLOOKUP(V6,背景,2,FALSE)","v":"title_backcolor1.png"},"白",{"$f":"VLOOKUP(X6,文字色,2,FALSE)","v":"16777215"}]
[1001,"新入り冒険者",1,"職業",{"$f":"VLOOKUP(D7,取得条件,2,FALSE)","v":2},1,1,"冒険者になる",1,"条件なし",{"$f":"VLOOKUP(J7,取得条件,2,FALSE)","v":0},null,null,null,null,"条件なし",{"$f":"VLOOKUP(P7,取得条件,2,FALSE)","v":0},null,null,null,null,"赤",{"$f":"VLOOKUP(V7,背景,2,FALSE)","v":"title_backcolor1.png"},"白","16777215"]
[1002,"見習い冒険者",1,"職業",2,1,10,"冒険者のLvを10にする",1,"条件なし",0,null,null,null,null,"条件なし",0,null,null,null,null,"赤",{"$f":"VLOOKUP(V8,背景,2,FALSE)","v":"title_backcolor1.png"},"白","16777215"]
[1003,"駆け出し冒険者",1,"職業",2,1,20,"冒険者のLvを20にする",1,"条件なし",0,null,null,null,null,"条件なし",0,null,null,null,null,"黄色","title_backcolor2.png","黒","0"]
[1004,"初級冒険者",1,"職業",2,1,30,"冒険者のLvを30にする",1,"条件なし",{"$f":"VLOOKUP(J10,取得条件,2,FALSE)","v":0},null,null,null,null,"条件なし",{"$f":"VLOOKUP(P10,取得条件,2,FALSE)","v":0},null,null,null,null,"茶色","title_backcolor7.png","黄色","16773376"]
[1005,"中級冒険者",1,"職業",2,1,40,"冒険者のLvを40にする",1,"条件なし",0,null,null,null,null,"条件なし",0,null,null,null,null,"緑","title_backcolor3.png","白","16777215",null,null,"5"]
[1006,"上級冒険者",1,"職業",2,1,50,"冒険者のLvを50にする",1,"条件なし",0,null,null,null,null,"条件なし",0,null,null,null,null,"空色","title_backcolor4.png","黒","0"]
[1007,"一流冒険者",1,"職業",{"$f":"VLOOKUP(D13,取得条件,2,FALSE)","v":2},1,60,"冒険者のLvを60にする",1,"条件なし",0,null,null,null,null,"条件なし",0,null,null,null,null,"ピンク","title_backcolor5.png","黒","0"]
[1008,"精鋭冒険者",1,"職業",2,1,70,"冒険者のLvを70にする",1,"条件なし",0,null,null,null,null,"条件なし",0,null,null,null,null,"オレンジ","title_backcolor6.png","黒","0"]
[1009,"熟練冒険者",1,"職業",2,1,80,"冒険者のLvを80にする",1,"条件なし",0,null,null,null,null,"条件なし",0,null,null,null,null,"黒","title_backcolor8.png","白","16777215"]
[1010,"筆頭冒険者",1,"職業",2,1,90,"冒険者のLvを90にする",1,"条件なし",0,null,null,null,null,"条件なし",0,null,null,null,null,"銀","title_backcolor9.png","黒","0"]
[1011,"無双冒険者",1,"職業",2,1,99,"冒険者のLvを99にする",1,"条件なし",0,null,null,null,null,"条件なし",0,null,null,null,null,"金","title_backcolor10.png","黒","0"]
[1012,"新入りファイター",1,"職業",2,101,1,"ファイターになる",1,"条件なし",0,null,null,null,null,"条件なし",0,null,null,null,null,"赤","title_backcolor1.png","白","16777215"]
[1013,"見習いファイター",1,"職業",2,101,10,"ファイターのLvを10にする",1,"条件なし",0,null,null,null,null,"条件なし",0,null,null,null,null,"赤","title_backcolor1.png","白","16777215"]
[1014,"駆け出しファイター",1,"職業",2,101,20,"ファイターのLvを20にする",1,"条件なし",0,null,null,null,null,"条件なし",0,null,null,null,null,"黄色","title_backcolor2.png","黒","0"]
[1015,"初級ファイター",1,"職業",2,101,30,"ファイターのLvを30にする",1,"条件なし",0,null,null,null,null,"条件なし",0,null,null,null,null,"茶色","title_backcolor7.png","黄色","16773376"]
[1016,"中級ファイター",1,"職業",2,101,40,"ファイターのLvを40にする",1,"条件なし",0,null,null,null,null,"条件なし",0,null,null,null,null,"緑","title_backcolor3.png","白","16777215"]
[1017,"上級ファイター",1,"職業",2,101,50,"ファイターのLvを50にする",1,"条件なし",0,null,null,null,null,"条件なし",0,null,null,null,null,"空色","title_backcolor4.png","黒","0"]
[1018,"一流ファイター",1,"職業",2,101,60,"ファイターのLvを60にする",1,"条件なし",0,null,null,null,null,"条件なし",0,null,null,null,null,"ピンク","title_backcolor5.png","黒","0"]
[1019,"精鋭ファイター",1,"職業",2,101,70,"ファイターのLvを70にする",1,"条件なし",0,null,null,null,null,"条件なし",0,null,null,null,null,"オレンジ","title_backcolor6.png","黒","0"]
[1020,"熟練ファイター",1,"職業",2,101,80,"ファイターのLvを80にする",1,"条件なし",0,null,null,null,null,"条件なし",0,null,null,null,null,"黒","title_backcolor8.png","白","16777215"]
[1021,"筆頭ファイター",1,"職業",2,101,90,"ファイターのLvを90にする",1,"条件なし",0,null,null,null,null,"条件なし",0,null,null,null,null,"銀","title_backcolor9.png","黒","0"]
[1022,"無双ファイター",1,"職業",2,101,99,"ファイターのLvを99にする",1,"条件なし",0,null,null,null,null,"条件なし",0,null,null,null,null,"金",{"$f":"VLOOKUP(V28,背景,2,FALSE)","v":"title_backcolor10.png"},"黒","0"]
[1023,"新入りメイジ",1,"職業",2,102,1,"メイジになる",1,"条件なし",0,null,null,null,null,"条件なし",0,null,null,null,null,"赤",{"$f":"VLOOKUP(V29,背景,2,FALSE)","v":"title_backcolor1.png"},"白","16777215"]
[1024,"見習いメイジ",1,"職業",2,102,10,"メイジのLvを10にする",1,"条件なし",0,null,null,null,null,"条件なし",0,null,null,null,null,"赤",{"$f":"VLOOKUP(V30,背景,2,FALSE)","v":"title_backcolor1.png"},"白","16777215"]
[1025,"駆け出しメイジ",1,"職業",2,102,20,"メイジのLvを20にする",1,"条件なし",0,null,null,null,null,"条件なし",0,null,null,null,null,"黄色",{"$f":"VLOOKUP(V31,背景,2,FALSE)","v":"title_backcolor2.png"},"黒","0"]
[1026,"初級メイジ",1,"職業",2,102,30,"メイジのLvを30にする",1,"条件なし",0,null,null,null,null,"条件なし",0,null,null,null,null,"茶色",{"$f":"VLOOKUP(V32,背景,2,FALSE)","v":"title_backcolor7.png"},"黄色","16773376"]
[1027,"中級メイジ",1,"職業",2,102,40,"メイジのLvを40にする",1,"条件なし",0,null,null,null,null,"条件なし",0,null,null,null,null,"緑",{"$f":"VLOOKUP(V33,背景,2,FALSE)","v":"title_backcolor3.png"},"白","16777215"]
[1028,"上級メイジ",1,"職業",2,102,50,"メイジのLvを50にする",1,"条件なし",0,null,null,null,null,"条件なし",0,null,null,null,null,"空色",{"$f":"VLOOKUP(V34,背景,2,FALSE)","v":"title_backcolor4.png"},"黒","0"]
[1029,"一流メイジ",1,"職業",2,102,60,"メイジのLvを60にする",1,"条件なし",0,null,null,null,null,"条件なし",0,null,null,null,null,"ピンク",{"$f":"VLOOKUP(V35,背景,2,FALSE)","v":"title_backcolor5.png"},"黒","0"]
[1030,"精鋭メイジ",1,"職業",2,102,70,"メイジのLvを70にする",1,"条件なし",0,null,null,null,null,"条件なし",0,null,null,null,null,"オレンジ",{"$f":"VLOOKUP(V36,背景,2,FALSE)","v":"title_backcolor6.png"},"黒","0"]
[1031,"熟練メイジ",1,"職業",2,102,80,"メイジのLvを80にする",1,"条件なし",0,null,null,null,null,"条件なし",0,null,null,null,null,"黒",{"$f":"VLOOKUP(V37,背景,2,FALSE)","v":"title_backcolor8.png"},"白","16777215"]
[1032,"筆頭メイジ",1,"職業",2,102,90,"メイジのLvを90にする",1,"条件なし",0,null,null,null,null,"条件なし",0,null,null,null,null,"銀",{"$f":"VLOOKUP(V38,背景,2,FALSE)","v":"title_backcolor9.png"},"黒","0"]
[1033,"無双メイジ",1,"職業",2,102,99,"メイジのLvを99にする",1,"条件なし",0,null,null,null,null,"条件なし",0,null,null,null,null,"金",{"$f":"VLOOKUP(V39,背景,2,FALSE)","v":"title_backcolor10.png"},"黒","0"]
[1034,"新入りプリースト",1,"職業",2,103,1,"プリーストになる",1,"条件なし",0,null,null,null,null,"条件なし",0,null,null,null,null,"赤",{"$f":"VLOOKUP(V40,背景,2,FALSE)","v":"title_backcolor1.png"},"白","16777215"]
[1035,"見習いプリースト",1,"職業",2,103,10,"プリーストのLvを10にする",1,"条件なし",0,null,null,null,null,"条件なし",0,null,null,null,null,"赤",{"$f":"VLOOKUP(V41,背景,2,FALSE)","v":"title_backcolor1.png"},"白","16777215"]
[1036,"駆け出しプリースト",1,"職業",2,103,20,"プリーストのLvを20にする",1,"条件なし",0,null,null,null,null,"条件なし",0,null,null,null,null,"黄色",{"$f":"VLOOKUP(V42,背景,2,FALSE)","v":"title_backcolor2.png"},"黒","0"]
[1037,"初級プリースト",1,"職業",2,103,30,"プリーストのLvを30にする",1,"条件なし",0,null,null,null,null,"条件なし",0,null,null,null,null,"茶色",{"$f":"VLOOKUP(V43,背景,2,FALSE)","v":"title_backcolor7.png"},"黄色","16773376"]
[1038,"中級プリースト",1,"職業",2,103,40,"プリーストのLvを40にする",1,"条件なし",0,null,null,null,null,"条件なし",0,null,null,null,null,"緑",{"$f":"VLOOKUP(V44,背景,2,FALSE)","v":"title_backcolor3.png"},"白","16777215"]
[1039,"上級プリースト",1,"職業",2,103,50,"プリーストのLvを50にする",1,"条件なし",0,null,null,null,null,"条件なし",0,null,null,null,null,"空色",{"$f":"VLOOKUP(V45,背景,2,FALSE)","v":"title_backcolor4.png"},"黒","0"]
[1040,"一流プリースト",1,"職業",2,103,60,"プリーストのLvを60にする",1,"条件なし",0,null,null,null,null,"条件なし",0,null,null,null,null,"ピンク",{"$f":"VLOOKUP(V46,背景,2,FALSE)","v":"title_backcolor5.png"},"黒","0"]
[1041,"精鋭プリースト",1,"職業",2,103,70,"プリーストのLvを70にする",1,"条件なし",0,null,null,null,null,"条件なし",0,null,null,null,null,"オレンジ",{"$f":"VLOOKUP(V47,背景,2,FALSE)","v":"title_backcolor6.png"},"黒","0"]
[1042,"熟練プリースト",1,"職業",2,103,80,"プリーストのLvを80にする",1,"条件なし",0,null,null,null,null,"条件なし",0,null,null,null,null,"黒",{"$f":"VLOOKUP(V48,背景,2,FALSE)","v":"title_backcolor8.png"},"白","16777215"]
[1043,"筆頭プリースト",1,"職業",2,103,90,"プリーストのLvを90にする",1,"条件なし",0,null,null,null,null,"条件なし",0,null,null,null,null,"銀",{"$f":"VLOOKUP(V49,背景,2,FALSE)","v":"title_backcolor9.png"},"黒","0"]
[1044,"無双プリースト",1,"職業",2,103,99,"プリーストのLvを99にする",1,"条件なし",0,null,null,null,null,"条件なし",0,null,null,null,null,"金",{"$f":"VLOOKUP(V50,背景,2,FALSE)","v":"title_backcolor10.png"},"黒","0"]
[1045,"新入りシーフ",1,"職業",2,104,1,"シーフになる",1,"条件なし",0,null,null,null,null,"条件なし",0,null,null,null,null,"赤",{"$f":"VLOOKUP(V51,背景,2,FALSE)","v":"title_backcolor1.png"},"白","16777215"]
[1046,"見習いシーフ",1,"職業",2,104,10,"シーフのLvを10にする",1,"条件なし",0,null,null,null,null,"条件なし",0,null,null,null,null,"赤",{"$f":"VLOOKUP(V52,背景,2,FALSE)","v":"title_backcolor1.png"},"白","16777215"]
[1047,"駆け出しシーフ",1,"職業",2,104,20,"シーフのLvを20にする",1,"条件なし",0,null,null,null,null,"条件なし",0,null,null,null,null,"黄色",{"$f":"VLOOKUP(V53,背景,2,FALSE)","v":"title_backcolor2.png"},"黒","0"]
[1048,"初級シーフ",1,"職業",2,104,30,"シーフのLvを30にする",1,"条件なし",0,null,null,null,null,"条件なし",0,null,null,null,null,"茶色","title_backcolor7.png","黄色","16773376"]
[1049,"中級シーフ",1,"職業",2,104,40,"シーフのLvを40にする",1,"条件なし",0,null,null,null,null,"条件なし",0,null,null,null,null,"緑","title_backcolor3.png","白","16777215"]
[1050,"上級シーフ",1,"職業",2,104,50,"シーフのLvを50にする",1,"条件なし",0,null,null,null,null,"条件なし",0,null,null,null,null,"空色","title_backcolor4.png","黒","0"]
[1051,"一流シーフ",1,"職業",2,104,60,"シーフのLvを60にする",1,"条件なし",0,null,null,null,null,"条件なし",0,null,null,null,null,"ピンク","title_backcolor5.png","黒","0"]
[1052,"精鋭シーフ",1,"職業",2,104,70,"シーフのLvを70にする",1,"条件なし",0,null,null,null,null,"条件なし",0,null,null,null,null,"オレンジ","title_backcolor6.png","黒","0"]
[1053,"熟練シーフ",1,"職業",2,104,80,"シーフのLvを80にする",1,"条件なし",0,null,null,null,null,"条件なし",0,null,null,null,null,"黒","title_backcolor8.png","白","16777215"]
[1054,"筆頭シーフ",1,"職業",2,104,90,"シーフのLvを90にする",1,"条件なし",0,null,null,null,null,"条件なし",0,null,null,null,null,"銀","title_backcolor9.png","黒","0"]
[1055,"無双シーフ",1,"職業",2,104,99,"シーフのLvを99にする",1,"条件なし",0,null,null,null,null,"条件なし",0,null,null,null,null,"金","title_backcolor10.png","黒","0"]
[1056,"新入りペットライザー",1,"職業",2,105,1,"ペットライザーになる",1,"条件なし",0,null,null,null,null,"条件なし",0,null,null,null,null,"赤","title_backcolor1.png","白","16777215"]
[1057,"見習いペットライザー",1,"職業",2,105,10,"ペットライザーのLvを10にする",1,"条件なし",0,null,null,null,null,"条件なし",0,null,null,null,null,"赤","title_backcolor1.png","白","16777215"]
[1058,"駆け出しペットライザー",1,"職業",2,105,20,"ペットライザーのLvを20にする",1,"条件なし",0,null,null,null,null,"条件なし",0,null,null,null,null,"黄色","title_backcolor2.png","黒","0"]
[1059,"初級ペットライザー",1,"職業",2,105,30,"ペットライザーのLvを30にする",1,"条件なし",0,null,null,null,null,"条件なし",0,null,null,null,null,"茶色","title_backcolor7.png","黄色","16773376"]
[1060,"中級ペットライザー",1,"職業",2,105,40,"ペットライザーのLvを40にする",1,"条件なし",0,null,null,null,null,"条件なし",0,null,null,null,null,"緑","title_backcolor3.png","白","16777215"]
[1061,"上級ペットライザー",1,"職業",2,105,50,"ペットライザーのLvを50にする",1,"条件なし",0,null,null,null,null,"条件なし",0,null,null,null,null,"空色","title_backcolor4.png","黒","0"]
[1062,"一流ペットライザー",1,"職業",2,105,60,"ペットライザーのLvを60にする",1,"条件なし",0,null,null,null,null,"条件なし",0,null,null,null,null,"ピンク","title_backcolor5.png","黒","0"]
[1063,"精鋭ペットライザー",1,"職業",2,105,70,"ペットライザーのLvを70にする",1,"条件なし",0,null,null,null,null,"条件なし",0,null,null,null,null,"オレンジ","title_backcolor6.png","黒","0"]
[1064,"熟練ペットライザー",1,"職業",2,105,80,"ペットライザーのLvを80にする",1,"条件なし",0,null,null,null,null,"条件なし",0,null,null,null,null,"黒","title_backcolor8.png","白",{"$f":"VLOOKUP(X70,文字色,2,FALSE)","v":"16777215"}]
[1065,"筆頭ペットライザー",1,"職業",2,105,90,"ペットライザーのLvを90にする",1,"条件なし",0,null,null,null,null,"条件なし",0,null,null,null,null,"銀","title_backcolor9.png","黒","0"]
[1066,"無双ペットライザー",1,"職業",2,105,99,"ペットライザーのLvを99にする",1,"条件なし",0,null,null,null,null,"条件なし",0,null,null,null,null,"金","title_backcolor10.png","黒","0"]
[1067,"新入りサムライ",1,"職業",2,201,1,"サムライになる",1,"条件なし",0,null,null,null,null,"条件なし",0,null,null,null,null,"赤","title_backcolor1.png","白","16777215"]
[1068,"見習いサムライ",1,"職業",2,201,10,"サムライのLvを10にする",1,"条件なし",{"$f":"VLOOKUP(J74,取得条件,2,FALSE)","v":0},null,null,null,null,"条件なし",{"$f":"VLOOKUP(P74,取得条件,2,FALSE)","v":0},null,null,null,null,"赤","title_backcolor1.png","白","16777215"]
[1069,"駆け出しサムライ",1,"職業",2,201,20,"サムライのLvを20にする",1,"条件なし",0,null,null,null,null,"条件なし",0,null,null,null,null,"黄色","title_backcolor2.png","黒","0"]
[1070,"初級サムライ",1,"職業",2,201,30,"サムライのLvを30にする",1,"条件なし",0,null,null,null,null,"条件なし",0,null,null,null,null,"茶色","title_backcolor7.png","黄色","16773376"]
[1071,"中級サムライ",1,"職業",{"$f":"VLOOKUP(D77,取得条件,2,FALSE)","v":2},201,40,"サムライのLvを40にする",1,"条件なし",0,null,null,null,null,"条件なし",0,null,null,null,null,"緑","title_backcolor3.png","白","16777215"]
[1072,"上級サムライ",1,"職業",2,201,50,"サムライのLvを50にする",1,"条件なし",0,null,null,null,null,"条件なし",0,null,null,null,null,"空色","title_backcolor4.png","黒","0"]
[1073,"一流サムライ",1,"職業",2,201,60,"サムライのLvを60にする",1,"条件なし",0,null,null,null,null,"条件なし",0,null,null,null,null,"ピンク","title_backcolor5.png","黒","0"]
[1074,"精鋭サムライ",1,"職業",2,201,70,"サムライのLvを70にする",1,"条件なし",0,null,null,null,null,"条件なし",0,null,null,null,null,"オレンジ","title_backcolor6.png","黒","0"]
[1075,"熟練サムライ",1,"職業",2,201,80,"サムライのLvを80にする",1,"条件なし",0,null,null,null,null,"条件なし",0,null,null,null,null,"黒","title_backcolor8.png","白","16777215"]
[1076,"筆頭サムライ",1,"職業",2,201,90,"サムライのLvを90にする",1,"条件なし",0,null,null,null,null,"条件なし",0,null,null,null,null,"銀","title_backcolor9.png","黒","0"]
[1077,"無双サムライ",1,"職業",2,201,99,"サムライのLvを99にする",1,"条件なし",0,null,null,null,null,"条件なし",0,null,null,null,null,"金","title_backcolor10.png","黒","0"]
[1078,"新入りソーサラー",1,"職業",2,204,1,"ソーサラーになる",1,"条件なし",0,null,null,null,null,"条件なし",0,null,null,null,null,"赤","title_backcolor1.png","白","16777215"]
[1079,"見習いソーサラー",1,"職業",2,204,10,"ソーサラーのLvを10にする",1,"条件なし",0,null,null,null,null,"条件なし",0,null,null,null,null,"赤","title_backcolor1.png","白","16777215"]
[1080,"駆け出しソーサラー",1,"職業",2,204,20,"ソーサラーのLvを20にする",1,"条件なし",0,null,null,null,null,"条件なし",0,null,null,null,null,"黄色","title_backcolor2.png","黒","0"]
[1081,"初級ソーサラー",1,"職業",2,204,30,"ソーサラーのLvを30にする",1,"条件なし",0,null,null,null,null,"条件なし",0,null,null,null,null,"茶色","title_backcolor7.png","黄色","16773376"]
[1082,"中級ソーサラー",1,"職業",2,204,40,"ソーサラーのLvを40にする",1,"条件なし",0,null,null,null,null,"条件なし",0,null,null,null,null,"緑","title_backcolor3.png","白","16777215"]
[1083,"上級ソーサラー",1,"職業",2,204,50,"ソーサラーのLvを50にする",1,"条件なし",0,null,null,null,null,"条件なし",0,null,null,null,null,"空色","title_backcolor4.png","黒","0"]
[1084,"一流ソーサラー",1,"職業",2,204,60,"ソーサラーのLvを60にする",1,"条件なし",0,null,null,null,null,"条件なし",0,null,null,null,null,"ピンク","title_backcolor5.png","黒","0"]
[1085,"精鋭ソーサラー",1,"職業",2,204,70,"ソーサラーのLvを70にする",1,"条件なし",0,null,null,null,null,"条件なし",0,null,null,null,null,"オレンジ","title_backcolor6.png","黒","0"]
[1086,"熟練ソーサラー",1,"職業",2,204,80,"ソーサラーのLvを80にする",1,"条件なし",0,null,null,null,null,"条件なし",0,null,null,null,null,"黒","title_backcolor8.png","白","16777215"]
[1087,"筆頭ソーサラー",1,"職業",2,204,90,"ソーサラーのLvを90にする",1,"条件なし",0,null,null,null,null,"条件なし",0,null,null,null,null,"銀","title_backcolor9.png","黒","0"]
[1088,"無双ソーサラー",1,"職業",2,204,99,"ソーサラーのLvを99にする",1,"条件なし",0,null,null,null,null,"条件なし",0,null,null,null,null,"金","title_backcolor10.png","黒","0"]
[1089,"新入りホーリーナイト",1,"職業",2,203,1,"ホーリーナイトになる",1,"条件なし",0,null,null,null,null,"条件なし",0,null,null,null,null,"赤","title_backcolor1.png","白","16777215"]
[1090,"見習いホーリーナイト",1,"職業",2,203,10,"ホーリーナイトのLvを10にする",1,"条件なし",0,null,null,null,null,"条件なし",0,null,null,null,null,"赤","title_backcolor1.png","白","16777215"]
[1091,"駆け出しホーリーナイト",1,"職業",2,203,20,"ホーリーナイトのLvを20にする",1,"条件なし",0,null,null,null,null,"条件なし",0,null,null,null,null,"黄色","title_backcolor2.png","黒","0"]
[1092,"初級ホーリーナイト",1,"職業",2,203,30,"ホーリーナイトのLvを30にする",1,"条件なし",0,null,null,null,null,"条件なし",0,null,null,null,null,"茶色","title_backcolor7.png","黄色","16773376"]
[1093,"中級ホーリーナイト",1,"職業",2,203,40,"ホーリーナイトのLvを40にする",1,"条件なし",0,null,null,null,null,"条件なし",0,null,null,null,null,"緑","title_backcolor3.png","白","16777215"]
[1094,"上級ホーリーナイト",1,"職業",2,203,50,"ホーリーナイトのLvを50にする",1,"条件なし",0,null,null,null,null,"条件なし",0,null,null,null,null,"空色","title_backcolor4.png","黒","0"]
[1095,"一流ホーリーナイト",1,"職業",2,203,60,"ホーリーナイトのLvを60にする",1,"条件なし",0,null,null,null,null,"条件なし",0,null,null,null,null,"ピンク","title_backcolor5.png","黒","0"]
[1096,"精鋭ホーリーナイト",1,"職業",2,203,70,"ホーリーナイトのLvを70にする",1,"条件なし",0,null,null,null,null,"条件なし",0,null,null,null,null,"オレンジ","title_backcolor6.png","黒","0"]
[1097,"熟練ホーリーナイト",1,"職業",2,203,80,"ホーリーナイトのLvを80にする",1,"条件なし",0,null,null,null,null,"条件なし",0,null,null,null,null,"黒","title_backcolor8.png","白","16777215"]
[1098,"筆頭ホーリーナイト",1,"職業",2,203,90,"ホーリーナイトのLvを90にする",1,"条件なし",0,null,null,null,null,"条件なし",0,null,null,null,null,"銀","title_backcolor9.png","黒","0"]
[1099,"無双ホーリーナイト",1,"職業",2,203,99,"ホーリーナイトのLvを99にする",1,"条件なし",0,null,null,null,null,"条件なし",0,null,null,null,null,"金","title_backcolor10.png","黒","0"]
[1100,"新入りニンジャ",1,"職業",2,202,1,"ニンジャになる",1,"条件なし",0,null,null,null,null,"条件なし",0,null,null,null,null,"赤","title_backcolor1.png","白","16777215"]
[1101,"見習いニンジャ",1,"職業",2,202,10,"ニンジャのLvを10にする",1,"条件なし",0,null,null,null,null,"条件なし",0,null,null,null,null,"赤","title_backcolor1.png","白","16777215"]
[1102,"駆け出しニンジャ",1,"職業",2,202,20,"ニンジャのLvを20にする",1,"条件なし",0,null,null,null,null,"条件なし",0,null,null,null,null,"黄色","title_backcolor2.png","黒","0"]
[1103,"初級ニンジャ",1,"職業",2,202,30,"ニンジャのLvを30にする",1,"条件なし",0,null,null,null,null,"条件なし",0,null,null,null,null,"茶色","title_backcolor7.png","黄色","16773376"]
[1104,"中級ニンジャ",1,"職業",2,202,40,"ニンジャのLvを40にする",1,"条件なし",0,null,null,null,null,"条件なし",0,null,null,null,null,"緑","title_backcolor3.png","白","16777215"]
[1105,"上級ニンジャ",1,"職業",2,202,50,"ニンジャのLvを50にする",1,"条件なし",0,null,null,null,null,"条件なし",0,null,null,null,null,"空色","title_backcolor4.png","黒","0"]
[1106,"一流ニンジャ",1,"職業",2,202,60,"ニンジャのLvを60にする",1,"条件なし",0,null,null,null,null,"条件なし",0,null,null,null,null,"ピンク","title_backcolor5.png","黒","0"]
[1107,"精鋭ニンジャ",1,"職業",2,202,70,"ニンジャのLvを70にする",1,"条件なし",0,null,null,null,null,"条件なし",0,null,null,null,null,"オレンジ","title_backcolor6.png","黒","0"]
[1108,"熟練ニンジャ",1,"職業",2,202,80,"ニンジャのLvを80にする",1,"条件なし",0,null,null,null,null,"条件なし",0,null,null,null,null,"黒","title_backcolor8.png","白","16777215"]
[1109,"筆頭ニンジャ",1,"職業",2,202,90,"ニンジャのLvを90にする",1,"条件なし",0,null,null,null,null,"条件なし",0,null,null,null,null,"銀","title_backcolor9.png","黒","0"]
[1110,"無双ニンジャ",1,"職業",2,202,99,"ニンジャのLvを99にする",1,"条件なし",0,null,null,null,null,"条件なし",0,null,null,null,null,"金","title_backcolor10.png","黒","0"]
[1111,"新入りレンジャー",1,"職業",2,205,1,"レンジャーになる",1,"条件なし",0,null,null,null,null,"条件なし",0,null,null,null,null,"赤",{"$f":"VLOOKUP(V117,背景,2,FALSE)","v":"title_backcolor1.png"},"白","16777215"]
[1112,"見習いレンジャー",1,"職業",2,205,10,"レンジャーのLvを10にする",1,"条件なし",0,null,null,null,null,"条件なし",0,null,null,null,null,"赤","title_backcolor1.png","白","16777215"]
[1113,"駆け出しレンジャー",1,"職業",2,205,20,"レンジャーのLvを20にする",1,"条件なし",0,null,null,null,null,"条件なし",0,null,null,null,null,"黄色","title_backcolor2.png","黒","0"]
[1114,"初級レンジャー",1,"職業",2,205,30,"レンジャーのLvを30にする",1,"条件なし",0,null,null,null,null,"条件なし",0,null,null,null,null,"茶色","title_backcolor7.png","黄色","16773376"]
[1115,"中級レンジャー",1,"職業",2,205,40,"レンジャーのLvを40にする",1,"条件なし",0,null,null,null,null,"条件なし",0,null,null,null,null,"緑","title_backcolor3.png","白","16777215"]
[1116,"上級レンジャー",1,"職業",2,205,50,"レンジャーのLvを50にする",1,"条件なし",0,null,null,null,null,"条件なし",0,null,null,null,null,"空色","title_backcolor4.png","黒","0"]
[1117,"一流レンジャー",1,"職業",2,205,60,"レンジャーのLvを60にする",1,"条件なし",0,null,null,null,null,"条件なし",0,null,null,null,null,"ピンク","title_backcolor5.png","黒","0"]
[1118,"精鋭レンジャー",1,"職業",2,205,70,"レンジャーのLvを70にする",1,"条件なし",0,null,null,null,null,"条件なし",0,null,null,null,null,"オレンジ","title_backcolor6.png","黒","0"]
[1119,"熟練レンジャー",1,"職業",2,205,80,"レンジャーのLvを80にする",1,"条件なし",0,null,null,null,null,"条件なし",0,null,null,null,null,"黒","title_backcolor8.png","白","16777215"]
[1120,"筆頭レンジャー",1,"職業",2,205,90,"レンジャーのLvを90にする",1,"条件なし",0,null,null,null,null,"条件なし",0,null,null,null,null,"銀","title_backcolor9.png","黒","0"]
[1121,"無双レンジャー",1,"職業",2,205,99,"レンジャーのLvを99にする",1,"条件なし",0,null,null,null,null,"条件なし",0,null,null,null,null,"金","title_backcolor10.png","黒","0"]
[1122,"新入りソードカイザー",1,"職業",2,301,1,"ソードカイザーになる",1,"条件なし",0,null,null,null,null,"条件なし",0,null,null,null,null,"赤","title_backcolor1.png","白","16777215"]
[1123,"見習いソードカイザー",1,"職業",2,301,10,"ソードカイザーのLvを10にする",1,"条件なし",0,null,null,null,null,"条件なし",0,null,null,null,null,"赤","title_backcolor1.png","白","16777215"]
[1124,"駆け出しソードカイザー",1,"職業",2,301,20,"ソードカイザーのLvを20にする",1,"条件なし",0,null,null,null,null,"条件なし",0,null,null,null,null,"黄色","title_backcolor2.png","黒","0"]
[1125,"初級ソードカイザー",1,"職業",2,301,30,"ソードカイザーのLvを30にする",1,"条件なし",0,null,null,null,null,"条件なし",0,null,null,null,null,"茶色","title_backcolor7.png","黄色","16773376"]
[1126,"中級ソードカイザー",1,"職業",2,301,40,"ソードカイザーのLvを40にする",1,"条件なし",0,null,null,null,null,"条件なし",0,null,null,null,null,"緑","title_backcolor3.png","白","16777215"]
[1127,"上級ソードカイザー",1,"職業",2,301,50,"ソードカイザーのLvを50にする",1,"条件なし",0,null,null,null,null,"条件なし",0,null,null,null,null,"空色","title_backcolor4.png","黒","0"]
[1128,"一流ソードカイザー",1,"職業",2,301,60,"ソードカイザーのLvを60にする",1,"条件なし",0,null,null,null,null,"条件なし",0,null,null,null,null,"ピンク","title_backcolor5.png","黒",{"$f":"VLOOKUP(X134,文字色,2,FALSE)","v":"0"}]
[1129,"精鋭ソードカイザー",1,"職業",2,301,70,"ソードカイザーのLvを70にする",1,"条件なし",0,null,null,null,null,"条件なし",0,null,null,null,null,"オレンジ","title_backcolor6.png","黒","0"]
[1130,"熟練ソードカイザー",1,"職業",2,301,80,"ソードカイザーのLvを80にする",1,"条件なし",0,null,null,null,null,"条件なし",0,null,null,null,null,"黒",{"$f":"VLOOKUP(V136,背景,2,FALSE)","v":"title_backcolor8.png"},"白","16777215"]
[1131,"筆頭ソードカイザー",1,"職業",2,301,90,"ソードカイザーのLvを90にする",1,"条件なし",0,null,null,null,null,"条件なし",0,null,null,null,null,"銀","title_backcolor9.png","黒","0"]
[1132,"無双ソードカイザー",1,"職業",2,301,99,"ソードカイザーのLvを99にする",1,"条件なし",{"$f":"VLOOKUP(J138,取得条件,2,FALSE)","v":0},null,null,null,null,"条件なし",{"$f":"VLOOKUP(P138,取得条件,2,FALSE)","v":0},null,null,null,null,"金","title_backcolor10.png","黒","0"]
[1133,"新入りグランマギアー",1,"職業",2,302,1,"グランマギアーになる",1,"条件なし",0,null,null,null,null,"条件なし",0,null,null,null,null,"赤","title_backcolor1.png","白","16777215"]
[1134,"見習いグランマギアー",1,"職業",2,302,10,"グランマギアーのLvを10にする",1,"条件なし",0,null,null,null,null,"条件なし",0,null,null,null,null,"赤","title_backcolor1.png","白","16777215"]
[1135,"駆け出しグランマギアー",1,"職業",{"$f":"VLOOKUP(D141,取得条件,2,FALSE)","v":2},302,20,"グランマギアーのLvを20にする",1,"条件なし",0,null,null,null,null,"条件なし",0,null,null,null,null,"黄色","title_backcolor2.png","黒","0"]
[1136,"初級グランマギアー",1,"職業",2,302,30,"グランマギアーのLvを30にする",1,"条件なし",0,null,null,null,null,"条件なし",0,null,null,null,null,"茶色","title_backcolor7.png","黄色","16773376"]
[1137,"中級グランマギアー",1,"職業",2,302,40,"グランマギアーのLvを40にする",1,"条件なし",0,null,null,null,null,"条件なし",0,null,null,null,null,"緑","title_backcolor3.png","白","16777215"]
[1138,"上級グランマギアー",1,"職業",2,302,50,"グランマギアーのLvを50にする",1,"条件なし",0,null,null,null,null,"条件なし",0,null,null,null,null,"空色","title_backcolor4.png","黒","0"]
[1139,"一流グランマギアー",1,"職業",2,302,60,"グランマギアーのLvを60にする",1,"条件なし",0,null,null,null,null,"条件なし",0,null,null,null,null,"ピンク","title_backcolor5.png","黒","0"]
[1140,"精鋭グランマギアー",1,"職業",2,302,70,"グランマギアーのLvを70にする",1,"条件なし",0,null,null,null,null,"条件なし",0,null,null,null,null,"オレンジ","title_backcolor6.png","黒","0"]
[1141,"熟練グランマギアー",1,"職業",2,302,80,"グランマギアーのLvを80にする",1,"条件なし",0,null,null,null,null,"条件なし",0,null,null,null,null,"黒","title_backcolor8.png","白","16777215"]
[1142,"筆頭グランマギアー",1,"職業",2,302,90,"グランマギアーのLvを90にする",1,"条件なし",0,null,null,null,null,"条件なし",0,null,null,null,null,"銀","title_backcolor9.png","黒","0"]
[1143,"無双グランマギアー",1,"職業",2,302,99,"グランマギアーのLvを99にする",1,"条件なし",0,null,null,null,null,"条件なし",0,null,null,null,null,"金","title_backcolor10.png","黒","0"]
[1144,"新入りシルドセイバー",1,"職業",2,304,1,"シルドセイバーになる",1,"条件なし",0,null,null,null,null,"条件なし",0,null,null,null,null,"赤","title_backcolor1.png","白","16777215"]
[1145,"見習いシルドセイバー",1,"職業",2,304,10,"シルドセイバーのLvを10にする",1,"条件なし",0,null,null,null,null,"条件なし",0,null,null,null,null,"赤","title_backcolor1.png","白","16777215"]
[1146,"駆け出しシルドセイバー",1,"職業",2,304,20,"シルドセイバーのLvを20にする",1,"条件なし",0,null,null,null,null,"条件なし",0,null,null,null,null,"黄色","title_backcolor2.png","黒","0"]
[1147,"初級シルドセイバー",1,"職業",2,304,30,"シルドセイバーのLvを30にする",1,"条件なし",0,null,null,null,null,"条件なし",0,null,null,null,null,"茶色","title_backcolor7.png","黄色","16773376"]
[1148,"中級シルドセイバー",1,"職業",2,304,40,"シルドセイバーのLvを40にする",1,"条件なし",0,null,null,null,null,"条件なし",0,null,null,null,null,"緑","title_backcolor3.png","白","16777215"]
[1149,"上級シルドセイバー",1,"職業",2,304,50,"シルドセイバーのLvを50にする",1,"条件なし",0,null,null,null,null,"条件なし",0,null,null,null,null,"空色","title_backcolor4.png","黒","0"]
[1150,"一流シルドセイバー",1,"職業",2,304,60,"シルドセイバーのLvを60にする",1,"条件なし",0,null,null,null,null,"条件なし",0,null,null,null,null,"ピンク","title_backcolor5.png","黒","0"]
[1151,"精鋭シルドセイバー",1,"職業",2,304,70,"シルドセイバーのLvを70にする",1,"条件なし",0,null,null,null,null,"条件なし",0,null,null,null,null,"オレンジ","title_backcolor6.png","黒","0"]
[1152,"熟練シルドセイバー",1,"職業",2,304,80,"シルドセイバーのLvを80にする",1,"条件なし",0,null,null,null,null,"条件なし",0,null,null,null,null,"黒","title_backcolor8.png","白","16777215"]
[1153,"筆頭シルドセイバー",1,"職業",2,304,90,"シルドセイバーのLvを90にする",1,"条件なし",0,null,null,null,null,"条件なし",0,null,null,null,null,"銀","title_backcolor9.png","黒","0"]
[1154,"無双シルドセイバー",1,"職業",2,304,99,"シルドセイバーのLvを99にする",1,"条件なし",0,null,null,null,null,"条件なし",0,null,null,null,null,"金","title_backcolor10.png","黒","0"]
[1155,"新入りアベンジスタ",1,"職業",2,303,1,"アベンジスタになる",1,"条件なし",0,null,null,null,null,"条件なし",0,null,null,null,null,"赤","title_backcolor1.png","白","16777215"]
[1156,"見習いアベンジスタ",1,"職業",2,303,10,"アベンジスタのLvを10にする",1,"条件なし",0,null,null,null,null,"条件なし",0,null,null,null,null,"赤","title_backcolor1.png","白","16777215"]
[1157,"駆け出しアベンジスタ",1,"職業",2,303,20,"アベンジスタのLvを20にする",1,"条件なし",0,null,null,null,null,"条件なし",0,null,null,null,null,"黄色","title_backcolor2.png","黒","0"]
[1158,"初級アベンジスタ",1,"職業",2,303,30,"アベンジスタのLvを30にする",1,"条件なし",0,null,null,null,null,"条件なし",0,null,null,null,null,"茶色","title_backcolor7.png","黄色","16773376"]
[1159,"中級アベンジスタ",1,"職業",2,303,40,"アベンジスタのLvを40にする",1,"条件なし",0,null,null,null,null,"条件なし",0,null,null,null,null,"緑","title_backcolor3.png","白","16777215"]
[1160,"上級アベンジスタ",1,"職業",2,303,50,"アベンジスタのLvを50にする",1,"条件なし",0,null,null,null,null,"条件なし",0,null,null,null,null,"空色","title_backcolor4.png","黒","0"]
[1161,"一流アベンジスタ",1,"職業",2,303,60,"アベンジスタのLvを60にする",1,"条件なし",0,null,null,null,null,"条件なし",0,null,null,null,null,"ピンク","title_backcolor5.png","黒","0"]
[1162,"精鋭アベンジスタ",1,"職業",2,303,70,"アベンジスタのLvを70にする",1,"条件なし",0,null,null,null,null,"条件なし",0,null,null,null,null,"オレンジ","title_backcolor6.png","黒","0"]
[1163,"熟練アベンジスタ",1,"職業",2,303,80,"アベンジスタのLvを80にする",1,"条件なし",0,null,null,null,null,"条件なし",0,null,null,null,null,"黒","title_backcolor8.png","白","16777215"]
[1164,"筆頭アベンジスタ",1,"職業",2,303,90,"アベンジスタのLvを90にする",1,"条件なし",0,null,null,null,null,"条件なし",0,null,null,null,null,"銀","title_backcolor9.png","黒","0"]
[1165,"無双アベンジスタ",1,"職業",2,303,99,"アベンジスタのLvを99にする",1,"条件なし",0,null,null,null,null,"条件なし",0,null,null,null,null,"金","title_backcolor10.png","黒","0"]
[1166,"新入りデュアルスター",1,"職業",2,305,1,"デュアルスターになる",1,"条件なし",0,null,null,null,null,"条件なし",0,null,null,null,null,"赤","title_backcolor1.png","白","16777215"]
[1167,"見習いデュアルスター",1,"職業",2,305,10,"デュアルスターのLvを10にする",1,"条件なし",0,null,null,null,null,"条件なし",0,null,null,null,null,"赤","title_backcolor1.png","白","16777215"]
[1168,"駆け出しデュアルスター",1,"職業",2,305,20,"デュアルスターのLvを20にする",1,"条件なし",0,null,null,null,null,"条件なし",0,null,null,null,null,"黄色","title_backcolor2.png","黒","0"]
[1169,"初級デュアルスター",1,"職業",2,305,30,"デュアルスターのLvを30にする",1,"条件なし",0,null,null,null,null,"条件なし",0,null,null,null,null,"茶色","title_backcolor7.png","黄色","16773376"]
[1170,"中級デュアルスター",1,"職業",2,305,40,"デュアルスターのLvを40にする",1,"条件なし",0,null,null,null,null,"条件なし",0,null,null,null,null,"緑","title_backcolor3.png","白","16777215"]
[1171,"上級デュアルスター",1,"職業",2,305,50,"デュアルスターのLvを50にする",1,"条件なし",0,null,null,null,null,"条件なし",0,null,null,null,null,"空色","title_backcolor4.png","黒","0"]
[1172,"一流デュアルスター",1,"職業",2,305,60,"デュアルスターのLvを60にする",1,"条件なし",0,null,null,null,null,"条件なし",0,null,null,null,null,"ピンク","title_backcolor5.png","黒","0"]
[1173,"精鋭デュアルスター",1,"職業",2,305,70,"デュアルスターのLvを70にする",1,"条件なし",0,null,null,null,null,"条件なし",0,null,null,null,null,"オレンジ","title_backcolor6.png","黒","0"]
[1174,"熟練デュアルスター",1,"職業",2,305,80,"デュアルスターのLvを80にする",1,"条件なし",0,null,null,null,null,"条件なし",0,null,null,null,null,"黒","title_backcolor8.png","白","16777215"]
[1175,"筆頭デュアルスター",1,"職業",2,305,90,"デュアルスターのLvを90にする",1,"条件なし",0,null,null,null,null,"条件なし",0,null,null,null,null,"銀","title_backcolor9.png","黒","0"]
[1176,"無双デュアルスター",1,"職業",2,305,99,"デュアルスターのLvを99にする",1,"条件なし",0,null,null,null,null,"条件なし",0,null,null,null,null,"金","title_backcolor10.png","黒","0"]
[1177,"新入りアラミカグラ",1,"職業",2,401,1,"アラミカグラになる",1,"条件なし",0,null,null,null,null,"条件なし",0,null,null,null,null,"赤","title_backcolor1.png","白","16777215"]
[1178,"見習いアラミカグラ",1,"職業",2,401,10,"アラミカグラのLvを10にする",1,"条件なし",0,null,null,null,null,"条件なし",0,null,null,null,null,"黄色",{"$f":"VLOOKUP(#REF!,背景,2,FALSE)","v":{"$error":"#REF!"}},"黒","0"]
[1179,"駆け出しアラミカグラ",1,"職業",2,401,20,"アラミカグラのLvを20にする",1,"条件なし",0,null,null,null,null,"条件なし",0,null,null,null,null,"茶色",{"$f":"VLOOKUP(V184,背景,2,FALSE)","v":"title_backcolor2.png"},"黄色","16773376"]
[1180,"初級アラミカグラ",1,"職業",2,401,30,"アラミカグラのLvを30にする",1,"条件なし",0,null,null,null,null,"条件なし",0,null,null,null,null,"緑","title_backcolor7.png","白","16777215"]
[1181,"中級アラミカグラ",1,"職業",2,401,40,"アラミカグラのLvを40にする",1,"条件なし",0,null,null,null,null,"条件なし",0,null,null,null,null,"空色","title_backcolor3.png","黒","0"]
[1182,"上級アラミカグラ",1,"職業",2,401,50,"アラミカグラのLvを50にする",1,"条件なし",0,null,null,null,null,"条件なし",0,null,null,null,null,"ピンク","title_backcolor4.png","黒","0"]
[1183,"一流アラミカグラ",1,"職業",2,401,60,"アラミカグラのLvを60にする",1,"条件なし",0,null,null,null,null,"条件なし",0,null,null,null,null,"オレンジ","title_backcolor5.png","黒","0"]
[1184,"精鋭アラミカグラ",1,"職業",2,401,70,"アラミカグラのLvを70にする",1,"条件なし",0,null,null,null,null,"条件なし",0,null,null,null,null,"黒","title_backcolor6.png","白","16777215"]
[1185,"熟練アラミカグラ",1,"職業",2,401,80,"アラミカグラのLvを80にする",1,"条件なし",0,null,null,null,null,"条件なし",0,null,null,null,null,"銀","title_backcolor8.png","黒","0"]
[1186,"筆頭アラミカグラ",1,"職業",2,401,90,"アラミカグラのLvを90にする",1,"条件なし",0,null,null,null,null,"条件なし",0,null,null,null,null,"金","title_backcolor9.png","黒","0"]
[1188,"新入りアルヴライド",1,"職業",2,402,1,"アルヴライドになる",1,"条件なし",0,null,null,null,null,"条件なし",0,null,null,null,null,"赤","title_backcolor10.png","白","16777215"]
[1189,"見習いアルヴライド",1,"職業",2,402,10,"アルヴライドのLvを10にする",1,"条件なし",0,null,null,null,null,"条件なし",0,null,null,null,null,"黄色","title_backcolor2.png","黒","0"]
[1190,"駆け出しアルヴライド",1,"職業",2,402,20,"アルヴライドのLvを20にする",1,"条件なし",0,null,null,null,null,"条件なし",0,null,null,null,null,"茶色","title_backcolor7.png","黄色","16773376"]
[1191,"初級アルヴライド",1,"職業",2,402,30,"アルヴライドのLvを30にする",1,"条件なし",0,null,null,null,null,"条件なし",0,null,null,null,null,"緑","title_backcolor3.png","白","16777215"]
[1192,"中級アルヴライド",1,"職業",2,402,40,"アルヴライドのLvを40にする",1,"条件なし",0,null,null,null,null,"条件なし",0,null,null,null,null,"空色","title_backcolor4.png","黒",{"$f":"VLOOKUP(X197,文字色,2,FALSE)","v":"0"}]
[1193,"上級アルヴライド",1,"職業",2,402,50,"アルヴライドのLvを50にする",1,"条件なし",0,null,null,null,null,"条件なし",0,null,null,null,null,"ピンク","title_backcolor5.png","黒","0"]
[1194,"一流アルヴライド",1,"職業",2,402,60,"アルヴライドのLvを60にする",1,"条件なし",0,null,null,null,null,"条件なし",0,null,null,null,null,"オレンジ",{"$f":"VLOOKUP(V199,背景,2,FALSE)","v":"title_backcolor6.png"},"黒","0"]
[1195,"精鋭アルヴライド",1,"職業",2,402,70,"アルヴライドのLvを70にする",1,"条件なし",0,null,null,null,null,"条件なし",0,null,null,null,null,"黒","title_backcolor8.png","白","16777215"]
[1196,"熟練アルヴライド",1,"職業",2,402,80,"アルヴライドのLvを80にする",1,"条件なし",{"$f":"VLOOKUP(J201,取得条件,2,FALSE)","v":0},null,null,null,null,"条件なし",{"$f":"VLOOKUP(P201,取得条件,2,FALSE)","v":0},null,null,null,null,"銀","title_backcolor9.png","黒","0"]
[1197,"筆頭アルヴライド",1,"職業",2,402,90,"アルヴライドのLvを90にする",1,"条件なし",0,null,null,null,null,"条件なし",0,null,null,null,null,"金","title_backcolor10.png","黒","0"]
[1199,"新入りノクスティア",1,"職業",{"$f":"VLOOKUP(D203,取得条件,2,FALSE)","v":2},403,1,"ノクスティアになる",1,"条件なし",0,null,null,null,null,"条件なし",0,null,null,null,null,"赤","title_backcolor1.png","白","16777215"]
[1200,"見習いノクスティア",1,"職業",2,403,10,"ノクスティアのLvを10にする",1,"条件なし",0,null,null,null,null,"条件なし",0,null,null,null,null,"黄色","title_backcolor2.png","黒","0"]
[1201,"駆け出しノクスティア",1,"職業",2,403,20,"ノクスティアのLvを20にする",1,"条件なし",0,null,null,null,null,"条件なし",0,null,null,null,null,"茶色","title_backcolor7.png","黄色","16773376"]
[1202,"初級ノクスティア",1,"職業",2,403,30,"ノクスティアのLvを30にする",1,"条件なし",0,null,null,null,null,"条件なし",0,null,null,null,null,"緑","title_backcolor3.png","白","16777215"]
[1203,"中級ノクスティア",1,"職業",2,403,40,"ノクスティアのLvを40にする",1,"条件なし",0,null,null,null,null,"条件なし",0,null,null,null,null,"空色","title_backcolor4.png","黒","0"]
[1204,"上級ノクスティア",1,"職業",2,403,50,"ノクスティアのLvを50にする",1,"条件なし",0,null,null,null,null,"条件なし",0,null,null,null,null,"ピンク","title_backcolor5.png","黒","0"]
[1205,"一流ノクスティア",1,"職業",2,403,60,"ノクスティアのLvを60にする",1,"条件なし",0,null,null,null,null,"条件なし",0,null,null,null,null,"オレンジ","title_backcolor6.png","黒","0"]
[1206,"精鋭ノクスティア",1,"職業",2,403,70,"ノクスティアのLvを70にする",1,"条件なし",0,null,null,null,null,"条件なし",0,null,null,null,null,"黒","title_backcolor8.png","白","16777215"]
[1207,"熟練ノクスティア",1,"職業",2,403,80,"ノクスティアのLvを80にする",1,"条件なし",0,null,null,null,null,"条件なし",0,null,null,null,null,"銀","title_backcolor9.png","黒","0"]
[1208,"筆頭ノクスティア",1,"職業",2,403,90,"ノクスティアのLvを90にする",1,"条件なし",0,null,null,null,null,"条件なし",0,null,null,null,null,"金","title_backcolor10.png","黒","0"]
[1210,"新入りニルバディオ",1,"職業",2,404,1,"ニルバディオになる",1,"条件なし",0,null,null,null,null,"条件なし",0,null,null,null,null,"赤","title_backcolor1.png","白","16777215"]
[1211,"見習いニルバディオ",1,"職業",2,404,10,"ニルバディオのLvを10にする",1,"条件なし",0,null,null,null,null,"条件なし",0,null,null,null,null,"黄色","title_backcolor2.png","黒","0"]
[1212,"駆け出しニルバディオ",1,"職業",2,404,20,"ニルバディオのLvを20にする",1,"条件なし",0,null,null,null,null,"条件なし",0,null,null,null,null,"茶色","title_backcolor7.png","黄色","16773376"]
[1213,"初級ニルバディオ",1,"職業",2,404,30,"ニルバディオのLvを30にする",1,"条件なし",0,null,null,null,null,"条件なし",0,null,null,null,null,"緑","title_backcolor3.png","白","16777215"]
[1214,"中級ニルバディオ",1,"職業",2,404,40,"ニルバディオのLvを40にする",1,"条件なし",0,null,null,null,null,"条件なし",0,null,null,null,null,"空色","title_backcolor4.png","黒","0"]
[1215,"上級ニルバディオ",1,"職業",2,404,50,"ニルバディオのLvを50にする",1,"条件なし",0,null,null,null,null,"条件なし",0,null,null,null,null,"ピンク","title_backcolor5.png","黒","0"]
[1216,"一流ニルバディオ",1,"職業",2,404,60,"ニルバディオのLvを60にする",1,"条件なし",0,null,null,null,null,"条件なし",0,null,null,null,null,"オレンジ","title_backcolor6.png","黒","0"]
[1217,"精鋭ニルバディオ",1,"職業",2,404,70,"ニルバディオのLvを70にする",1,"条件なし",0,null,null,null,null,"条件なし",0,null,null,null,null,"黒","title_backcolor8.png","白","16777215"]
[1218,"熟練ニルバディオ",1,"職業",2,404,80,"ニルバディオのLvを80にする",1,"条件なし",0,null,null,null,null,"条件なし",0,null,null,null,null,"銀","title_backcolor9.png","黒","0"]
[1219,"筆頭ニルバディオ",1,"職業",2,404,90,"ニルバディオのLvを90にする",1,"条件なし",0,null,null,null,null,"条件なし",0,null,null,null,null,"金","title_backcolor10.png","黒","0"]
[20001,"クエストビギナー",1,"クエストクリア数",{"$f":"VLOOKUP(D223,取得条件,2,FALSE)","v":4},null,1,"クエストクリア合計1以上。",1,"条件なし",{"$f":"VLOOKUP(J223,取得条件,2,FALSE)","v":0},null,null,null,null,"条件なし",{"$f":"VLOOKUP(P223,取得条件,2,FALSE)","v":0},null,null,null,null,"赤","title_backcolor1.png","白","16777215"]
[20002,"クエストファン",1,"クエストクリア数",4,null,10,"クエストクリア合計10以上。",1,"条件なし",0,null,null,null,null,"条件なし",0,null,null,null,null,"黄色","title_backcolor2.png","黒","0"]
[20003,"クエストフェチ",1,"クエストクリア数",4,null,30,"クエストクリア合計30以上。",1,"条件なし",0,null,null,null,null,"条件なし",0,null,null,null,null,"茶色","title_backcolor7.png","黄色","16773376"]
[20004,"クエストコレクター",1,"クエストクリア数",4,null,50,"クエストクリア合計50以上。",1,"条件なし",0,null,null,null,null,"条件なし",0,null,null,null,null,"緑","title_backcolor3.png","白","16777215"]
[20005,"クエストフリーク",1,"クエストクリア数",4,null,100,"クエストクリア合計100以上。",1,"条件なし",0,null,null,null,null,"条件なし",0,null,null,null,null,"空色","title_backcolor4.png","黒","0"]
[20006,"クエストマニア",1,"クエストクリア数",4,null,500,"クエストクリア合計500以上。",1,"条件なし",0,null,null,null,null,"条件なし",0,null,null,null,null,"ピンク","title_backcolor5.png","黒","0"]
[20007,"クエストに目覚めしもの",1,"クエストクリア数",4,null,800,"クエストクリア合計800以上。",1,"条件なし",0,null,null,null,null,"条件なし",0,null,null,null,null,"オレンジ","title_backcolor6.png","黒","0"]
[30001,"チョイムキ！",1,"ステータス",{"$f":"VLOOKUP(D230,取得条件,2,FALSE)","v":5},1,10,"POWの値10以上",1,"条件なし",{"$f":"VLOOKUP(J230,取得条件,2,FALSE)","v":0},null,null,null,null,"条件なし",{"$f":"VLOOKUP(P230,取得条件,2,FALSE)","v":0},null,null,null,null,"ピンク","title_backcolor5.png","黒","0"]
[30002,"学生",1,"ステータス",5,2,10,"INTの値10以上",1,"条件なし",0,null,null,null,null,"条件なし",0,null,null,null,null,"ピンク","title_backcolor5.png","黒","0"]
[30003,"小走",1,"ステータス",5,3,10,"SPDの値10以上",1,"条件なし",0,null,null,null,null,"条件なし",0,null,null,null,null,"ピンク","title_backcolor5.png","黒","0"]
[30004,"元気",1,"ステータス",5,4,10,"VITの値10以上",1,"条件なし",0,null,null,null,null,"条件なし",0,null,null,null,null,"ピンク","title_backcolor5.png","黒","0"]
[30005,"COOL",1,"ステータス",5,5,10,"LUKの値10以上",1,"条件なし",0,null,null,null,null,"条件なし",0,null,null,null,null,"ピンク","title_backcolor5.png","黒","0"]
[30006,"モリモリ！",1,"ステータス",5,1,30,"POWの値30以上",1,"条件なし",0,null,null,null,null,"条件なし",0,null,null,null,null,"オレンジ","title_backcolor6.png","黒","0"]
[30007,"先生",1,"ステータス",5,2,30,"INTの値30以上",1,"条件なし",0,null,null,null,null,"条件なし",0,null,null,null,null,"オレンジ","title_backcolor6.png","黒","0"]
[30008,"疾速",1,"ステータス",5,3,30,"SPDの値30以上",1,"条件なし",0,null,null,null,null,"条件なし",0,null,null,null,null,"オレンジ","title_backcolor6.png","黒","0"]
[30009,"快活",1,"ステータス",5,4,30,"VITの値30以上",1,"条件なし",0,null,null,null,null,"条件なし",0,null,null,null,null,"オレンジ","title_backcolor6.png","黒","0"]
[30010,"GOOD",1,"ステータス",5,5,30,"LUKの値30以上",1,"条件なし",0,null,null,null,null,"条件なし",0,null,null,null,null,"オレンジ","title_backcolor6.png","黒","0"]
[30011,"ムキムキ！",1,"ステータス",5,1,50,"POWの値50以上",1,"条件なし",0,null,null,null,null,"条件なし",0,null,null,null,null,"黒","title_backcolor8.png","白","16777215"]
[30012,"学者",1,"ステータス",5,2,50,"INTの値50以上",1,"条件なし",0,null,null,null,null,"条件なし",0,null,null,null,null,"黒","title_backcolor8.png","白","16777215"]
[30013,"音速",1,"ステータス",5,3,50,"SPDの値50以上",1,"条件なし",0,null,null,null,null,"条件なし",0,null,null,null,null,"黒","title_backcolor8.png","白","16777215"]
[30014,"勇壮",1,"ステータス",5,4,50,"VITの値50以上",1,"条件なし",0,null,null,null,null,"条件なし",0,null,null,null,null,"黒","title_backcolor8.png","白","16777215"]
[30015,"GREAT",1,"ステータス",5,5,50,"LUKの値50以上",1,"条件なし",0,null,null,null,null,"条件なし",0,null,null,null,null,"黒","title_backcolor8.png","白","16777215"]
[30016,"ビキビキ！",1,"ステータス",5,1,99,"POWの値99以上",1,"条件なし",0,null,null,null,null,"条件なし",0,null,null,null,null,"銀","title_backcolor9.png","黒","0"]
[30017,"博士",1,"ステータス",5,2,99,"INTの値99以上",1,"条件なし",0,null,null,null,null,"条件なし",0,null,null,null,null,"銀","title_backcolor9.png","黒","0"]
[30018,"光速",1,"ステータス",5,3,99,"SPDの値99以上",1,"条件なし",0,null,null,null,null,"条件なし",0,null,null,null,null,"銀","title_backcolor9.png","黒","0"]
[30019,"剛健",1,"ステータス",5,4,99,"VITの値99以上",1,"条件なし",0,null,null,null,null,"条件なし",0,null,null,null,null,"銀","title_backcolor9.png","黒","0"]
[30020,"EXCELLENT",1,"ステータス",5,5,99,"LUKの値99以上",1,"条件なし",0,null,null,null,null,"条件なし",0,null,null,null,null,"銀","title_backcolor9.png","黒","0"]
[30021,"バキバキ！",1,"ステータス",5,1,150,"POWの値150以上",1,"条件なし",0,null,null,null,null,"条件なし",0,null,null,null,null,"金","title_backcolor10.png","黒","0"]
[30022,"賢者",1,"ステータス",{"$f":"VLOOKUP(D251,取得条件,2,FALSE)","v":5},2,150,"INTの値150以上",1,"条件なし",{"$f":"VLOOKUP(J251,取得条件,2,FALSE)","v":0},null,null,null,null,"条件なし",{"$f":"VLOOKUP(P251,取得条件,2,FALSE)","v":0},null,null,null,null,"金","title_backcolor10.png","黒","0"]
[30023,"神速",1,"ステータス",5,3,150,"SPDの値150以上",1,"条件なし",0,null,null,null,null,"条件なし",0,null,null,null,null,"金","title_backcolor10.png","黒","0"]
[30024,"不死身",1,"ステータス",5,4,150,"VITの値150以上",1,"条件なし",0,null,null,null,null,"条件なし",0,null,null,null,null,"金","title_backcolor10.png","黒","0"]
[30025,"BRILLIANT",1,"ステータス",{"$f":"VLOOKUP(D254,取得条件,2,FALSE)","v":5},5,150,"LUKの値150以上",2,"条件なし",{"$f":"VLOOKUP(J254,取得条件,2,FALSE)","v":0},null,null,null,null,"条件なし",{"$f":"VLOOKUP(P254,取得条件,2,FALSE)","v":0},null,null,null,null,"金","title_backcolor10.png","黒","0"]
[40001,"いざゆかん！",1,"称号",6,1001,1,"『新入り冒険者』取得",1,"称号",6,1002,1,"『見習い冒険者』取得",1,"称号",6,1003,1,"『駆け出し冒険者』取得",1,"赤","title_backcolor2.png","白","0"]
[40002,"はじめの一歩",1,"称号",6,20001,1,"『クエストビギナー』取得",1,"称号",6,1002,1,"『見習い冒険者』取得",1,"称号",6,60002,1,"『宿屋入門』取得",1,"黄色","title_backcolor2.png","黒","0"]
[40003,"速・攻・守",1,"称号",6,30023,1,"『神速』取得",1,"称号",6,30021,1,"『バキバキ！』取得",1,"称号",6,30024,1,"『不死身』取得",1,"オレンジ","title_backcolor2.png","黒","0"]
[40004,"速・攻・運",1,"称号",6,30023,1,"『神速』取得",1,"称号",6,30021,1,"『バキバキ！』取得",1,"称号",6,30025,1,"『BRILLIANT』取得",1,"緑","title_backcolor2.png","白","0"]
[40005,"速・魔・守",1,"称号",6,30023,1,"『神速』取得",1,"称号",6,30022,1,"『賢者』取得",1,"称号",6,30024,1,"『不死身』取得",1,"空色","title_backcolor2.png","黄色","0"]
[40006,"速・魔・運",1,"称号",6,30023,1,"『神速』取得",1,"称号",6,30022,1,"『賢者』取得",1,"称号",6,30025,1,"『BRILLIANT』取得",1,"ピンク","title_backcolor2.png","黒","0"]
[50001,"回復薬入門",1,"アイテム",{"$f":"VLOOKUP(D261,取得条件,2,FALSE)","v":7},310010,80,"『HP回復薬200』80個以上所持",1,"条件なし",{"$f":"VLOOKUP(J261,取得条件,2,FALSE)","v":0},null,null,null,null,"条件なし",{"$f":"VLOOKUP(P261,取得条件,2,FALSE)","v":0},null,null,null,null,"赤",{"$f":"VLOOKUP(V261,背景,2,FALSE)","v":"title_backcolor1.png"},"白",{"$f":"VLOOKUP(X261,文字色,2,FALSE)","v":"16777215"}]
[50002,"回復薬中級",1,"アイテム",7,310011,80,"『HP回復薬500』80個以上所持",1,"条件なし",0,null,null,null,null,"条件なし",0,null,null,null,null,"黄色","title_backcolor2.png","黒","0"]
[50003,"回復薬上級",1,"アイテム",7,310012,80,"『HP回復薬1000』80個以上所持",1,"条件なし",0,null,null,null,null,"条件なし",0,null,null,null,null,"緑","title_backcolor3.png","白","16777215"]
[50004,"SP回復薬入門",1,"アイテム",7,320010,80,"『SP回復薬200』80個以上所持",1,"条件なし",0,null,null,null,null,"条件なし",0,null,null,null,null,"赤","title_backcolor1.png","白","16777215"]
[50005,"SP回復薬中級",1,"アイテム",7,320011,80,"『SP回復薬500』80個以上所持",1,"条件なし",0,null,null,null,null,"条件なし",0,null,null,null,null,"黄色","title_backcolor2.png","黒","0"]
[50006,"SP回復薬上級",1,"アイテム",7,320012,80,"『SP回復薬1000』80個以上所持",1,"条件なし",0,null,null,null,null,"条件なし",0,null,null,null,null,"緑","title_backcolor3.png","白","16777215"]
[50007,"リカバリン超入門",1,"アイテム",7,310002,80,"『リカバリンSS』80個以上所持",1,"条件なし",0,null,null,null,null,"条件なし",0,null,null,null,null,"赤","title_backcolor1.png","白","16777215"]
[50008,"リカバリン入門",1,"アイテム",7,310003,80,"『リカバリンS』80個以上所持",1,"条件なし",0,null,null,null,null,"条件なし",0,null,null,null,null,"黄色","title_backcolor2.png","黒","0"]
[50009,"リカバリン中級",1,"アイテム",7,310004,80,"『リカバリンM』80個以上所持",1,"条件なし",0,null,null,null,null,"条件なし",0,null,null,null,null,"黒","title_backcolor8.png","白","16777215"]
[50010,"リカバリン上級",1,"アイテム",7,310005,80,"『リカバリンL』80個以上所持",1,"条件なし",0,null,null,null,null,"条件なし",0,null,null,null,null,"銀","title_backcolor9.png","黒","0"]
[50011,"リカバリン王",1,"アイテム",7,310006,80,"『リカバリンGT』80個以上所持",1,"条件なし",0,null,null,null,null,"条件なし",0,null,null,null,null,"金","title_backcolor10.png","黒","0"]
[50012,"スキルゲン超入門",1,"アイテム",7,320002,80,"『スキルゲンSS』80個以上所持",1,"条件なし",0,null,null,null,null,"条件なし",0,null,null,null,null,"赤","title_backcolor1.png","白","16777215"]
[50013,"スキルゲン入門",1,"アイテム",7,320003,80,"『スキルゲンS』80個以上所持",1,"条件なし",0,null,null,null,null,"条件なし",0,null,null,null,null,"黄色","title_backcolor2.png","黒","0"]
[50014,"スキルゲン中級",1,"アイテム",7,320004,80,"『スキルゲンM』80個以上所持",1,"条件なし",0,null,null,null,null,"条件なし",0,null,null,null,null,"黒","title_backcolor8.png","白","16777215"]
[50015,"スキルゲン上級",1,"アイテム",7,320005,80,"『スキルゲンL』80個以上所持",1,"条件なし",0,null,null,null,null,"条件なし",0,null,null,null,null,"銀","title_backcolor9.png","黒","0"]
[50016,"スキルゲン王",1,"アイテム",7,320006,80,"『スキルゲンGT』80個以上所持",1,"条件なし",0,null,null,null,null,"条件なし",0,null,null,null,null,"金","title_backcolor10.png","黒","0"]
[50017,"羽ひろい",1,"アイテム",7,340001,1,"『エンジェルフェザー』1個以上所持",1,"条件なし",0,null,null,null,null,"条件なし",0,null,null,null,null,"赤","title_backcolor1.png","白","16777215"]
[50018,"羽くばり",1,"アイテム",7,340001,80,"『エンジェルフェザー』80個以上所持",1,"条件なし",0,null,null,null,null,"条件なし",0,null,null,null,null,"銀","title_backcolor9.png","黒","0"]
[50019,"１度だけの復活",1,"アイテム",7,200009,1,"『サクリ・ファイト』１個以上所持",1,"条件なし",0,null,null,null,null,"条件なし",0,null,null,null,null,"赤","title_backcolor1.png","白","16777215"]
[50020,"くじけない心",1,"アイテム",7,200009,80,"『サクリ・ファイト』80個以上所持",1,"条件なし",0,null,null,null,null,"条件なし",0,null,null,null,null,"銀","title_backcolor9.png","黒","0"]
[50021,"リビングデッド",1,"アイテム",7,200009,240,"『サクリ・ファイト』240個以上所持",1,"条件なし",0,null,null,null,null,"条件なし",0,null,null,null,null,"金","title_backcolor10.png","黒","0"]
[50022,"小貯金はじめました",1,"アイテム",7,580008,8,"『砂金袋50g』を8個以上所持",1,"条件なし",0,null,null,null,null,"条件なし",0,null,null,null,null,"赤","title_backcolor1.png","白","16777215"]
[50023,"大貯金はじめました",1,"アイテム",7,580001,8,"『砂金袋100g』を8個以上所持",1,"条件なし",0,null,null,null,null,"条件なし",0,null,null,null,null,"黄色","title_backcolor2.png","黒","0"]
[50024,"小貯蓄はじめました",1,"アイテム",7,580002,8,"『砂金袋500g』を8個以上所持",1,"条件なし",0,null,null,null,null,"条件なし",0,null,null,null,null,"銀","title_backcolor9.png","黒","0"]
[50025,"大貯蓄はじめました",1,"アイテム",7,580003,8,"『砂金袋1kg』を8個以上所持",1,"条件なし",0,null,null,null,null,"条件なし",0,null,null,null,null,"金","title_backcolor10.png","黒","0"]
[60001,"ビギナー冒険者",1,"クエスト",{"$f":"VLOOKUP(D286,取得条件,2,FALSE)","v":8},3294024,1,"『ユニオンミッションについて』を1回以上クリア",1,"条件なし",{"$f":"VLOOKUP(J286,取得条件,2,FALSE)","v":0},null,null,null,null,"条件なし",{"$f":"VLOOKUP(P286,取得条件,2,FALSE)","v":0},null,null,null,null,"赤",{"$f":"VLOOKUP(V286,背景,2,FALSE)","v":"title_backcolor1.png"},"白","16777215"]
[60002,"宿屋入門",1,"クエスト",8,6151001,1,"『1-1.冒険のはじまり』を１回以上クリア",1,"条件なし",0,null,null,null,null,"条件なし",0,null,null,null,null,"黄色","title_backcolor2.png","黒","0"]
[60003,"宿屋駆け出し",1,"クエスト",8,6151028,1,"『2-12.新たなる冒険』を1回以上クリア",1,"条件なし",0,null,null,null,null,"条件なし",0,null,null,null,null,"黒","title_backcolor8.png","白","16777215"]
[60004,"宿屋中堅",1,"クエスト",8,6151052,1,"『3-7.大神官の役割』を1回以上クリア",1,"条件なし",0,null,null,null,null,"条件なし",0,null,null,null,null,"銀","title_backcolor9.png","黒","0"]
[60005,"宿屋ベテラン",1,"クエスト",8,6151059,1,"『4-7.導きの石』を１回以上クリア",1,"条件なし",0,null,null,null,null,"条件なし",0,null,null,null,null,"金","title_backcolor10.png","黒","0"]
[60007,"職業協会入門",1,"クエスト",8,6508114,1,"『1-4.文献学者イオ』を１回以上クリア",1,"条件なし",0,null,null,null,null,"条件なし",0,null,null,null,null,"赤","title_backcolor1.png","白","16777215"]
[60008,"職業協会徒弟人",1,"クエスト",8,6508122,1,"『2-2.盗賊ギルド』を１回以上クリア",1,"条件なし",0,null,null,null,null,"条件なし",0,null,null,null,null,"黄色","title_backcolor2.png","黒","0"]
[60009,"職業協会駆け出し",1,"クエスト",8,6508135,1,"『3-5.ナディアの夢』を１回以上クリア",1,"条件なし",0,null,null,null,null,"条件なし",0,null,null,null,null,"オレンジ","title_backcolor6.png","黒","0"]
[60010,"職業協会奉公人",1,"クエスト",8,6508141,1,"『4-1.推測と探索』を１回以上クリア",1,"条件なし",0,null,null,null,null,"条件なし",0,null,null,null,null,"黒","title_backcolor8.png","白","16777215"]
[60011,"職業協会ベテラン",1,"クエスト",8,6508152,1,"『5-2.ケウティアの夢』を１回以上クリア",1,"条件なし",0,null,null,null,null,"条件なし",0,null,null,null,null,"銀","title_backcolor9.png","黒","0"]
[60012,"職業協会請負人",1,"クエスト",8,6508163,1,"『6-3.ナディアの書奪還\t』を１回以上クリア",1,"条件なし",0,null,null,null,null,"条件なし",0,null,null,null,null,"金","title_backcolor10.png","黒","0"]

{"sheet":"条件","index":3,"n_rows":14,"n_cols":10,"rows_kept":14,"cut":false,"hidden":false,"merged":[[0,0,0,1],[0,4,0,5],[0,8,0,9]]}
["取得条件",null,null,null,"背景",null,null,null,"文字色"]
["条件なし",0,null,null,"赤","title_backcolor1.png",null,null,"赤","16730880"]
["プレイ回数",1,null,null,"黄色","title_backcolor2.png",null,null,"黄色","16773376"]
["職業",2,null,null,"緑","title_backcolor3.png",null,null,"緑","241530"]
["カウンター",3,null,null,"空色","title_backcolor4.png",null,null,"空色","5096703"]
["クエストクリア数",4,null,null,"ピンク","title_backcolor5.png",null,null,"ピンク","16744578"]
["ステータス",5,null,null,"オレンジ","title_backcolor6.png",null,null,"オレンジ","16165376"]
["称号",6,null,null,"茶色","title_backcolor7.png",null,null,"茶色","8404992"]
["アイテム",7,null,null,"黒","title_backcolor8.png",null,null,"黒","0"]
["クエスト",8,null,null,"銀","title_backcolor9.png",null,null,"銀","15790320"]
[null,null,null,null,"金","title_backcolor10.png",null,null,"金","16766720"]
[null,null,null,null,null,null,null,null,"白","16777215"]
[]
[null,null,null,null,null,null,null,null,null,"※カラーコードを10進数で入力してください"]

{"sheet":"背景と文字色ルール","index":4,"n_rows":61,"n_cols":6,"rows_kept":61,"cut":false,"hidden":false,"merged":[]}
[]
[null,"背景色（※企画意図があるならこのルールは無視して良いです）"]
[]
[null,"１０色あるので、最大１０段階に分けられる。"]
[]
[null,1,"赤"]
[null,2,"黄色"]
[null,3,"茶色"]
[null,4,"緑"]
[null,5,"空色"]
[null,6,"ピンク"]
[null,7,"オレンジ"]
[null,8,"黒"]
[null,9,"銀"]
[null,10,"金"]
[]
[null,"段階をどう区切るかは称号を追加した企画の意図によるが、"]
[null,"特に意図無いなら"]
[null,"以下のような区切り方をする"]
[]
[null,1,"冒険者になる",null,null,"赤"]
[null,2,"冒険者のLvを10にする",null,null,"赤"]
[null,3,"冒険者のLvを20にする",null,null,"黄色"]
[null,4,"冒険者のLvを30にする",null,null,"茶色"]
[null,5,"冒険者のLvを40にする",null,null,"緑"]
[null,6,"冒険者のLvを50にする",null,null,"空色"]
[null,7,"冒険者のLvを60にする",null,null,"ピンク"]
[null,8,"冒険者のLvを70にする",null,null,"オレンジ"]
[null,9,"冒険者のLvを80にする",null,null,"黒"]
[null,10,"冒険者のLvを90にする",null,null,"銀"]
[null,11,"冒険者のLvを99にする",null,null,"金"]
[]
[null,"上記のように段階が１０を超えた場合は、下から一つづつ増やす。"]
[null,"つまり、１１なら１と２が赤。１２なら、１と２が赤で３と４が黄色。"]
[]
[null,"【注意点】"]
[null,"茶色をなるべく使ってほしくない（見栄えが悪い）。"]
[null,"なので、茶色は抜く前提で自分なりに段階を作って設定してほしい。"]
[null,"※空色の上が黒、とかはあり。"]
[null,"※銀の上が黒とかはなし。"]
[]
[]
[]
[]
[null,"テキスト色（※企画意図があるならこのルールは無視して良いです）"]
[]
[null,"基本的には追加の際に意図と沿うものを選ぶ。"]
[null,"特に無いなら、以下の形で合わせれば良い。"]
[null,"（単純に見やすい色になってるはずです）"]
[]
[null,"背景色","テキスト色"]
[null,"赤","白"]
[null,"黄色","黒"]
[null,"茶色","黄色"]
[null,"緑","白"]
[null,"空色","黒"]
[null,"ピンク","黒"]
[null,"オレンジ","黒"]
[null,"黒","白"]
[null,"銀","黒"]
[null,"金","黒"]

{"sheet":"個人設定","index":5,"n_rows":12,"n_cols":3,"rows_kept":12,"cut":false,"hidden":false,"merged":[]}
["■このエクセル内で利用する個人の設定"]
[]
[{"$f":"\"現在のログインユーザー:\"&LoginUserName()","v":"現在のログインユーザー:naito_mahiro"}]
[]
[null,null,"↓XMLの保存先"]
["社員番号","名前","HOME"]
["-","一時利用者","C:\\"]
["cfk898","鈴木孝幸","D:\\"]
["koshikawa_yoshiaki","越川善陽","C:\\tmp"]
["naito_mahiro","内藤真広","C:\\Users\\naito_mahiro\\Desktop\\choco\\FTS\\data"]
["sato_yasumasa","佐藤恭優","D:\\choco\\FTS\\data"]
["※テーブルになっているので追加する場合は表の右下のセルでTabキーを押すか、”』”マークを下にドラッグしてください"]